fUSD/lending_fUSD_20250331
["ID","MTS","AMOUNT","RATE_DAILY","PERIOD"]
[356901884,1743406448713,-150.0,0.00036765,2]
[356901885,1743406448724,-150.0,0.00036765,2]
[356901886,1743406448735,-150.0,0.00036765,2]
[356901887,1743406448745,-150.0,0.00036765,2]
[356901888,1743406448757,-150.0,0.00036765,2]
[356901889,1743406448768,-200.0,0.00036765,2]
[356901890,1743406448784,-224.25,0.00036765,2]
[356901891,1743406448795,-250.0,0.00036765,2]
[356901892,1743406448811,-285.2498771,0.00036765,2]
[356901893,1743406448820,-714.7501229,0.0003679,3]
[356901894,1743406448832,-23900.0,0.0003679,3]
[356901895,1743406448843,-665.729,0.0003679,3]
[356901896,1743406448854,-1864.4185493,0.0003679,3]
[356901897,1743406448865,-326.87,0.0003679,3]
[356901898,1743406448881,-1121.77831777,0.0003679,3]
[356901899,1743406448892,-1327.77898566,0.0003679,3]
[356901900,1743406448908,-164.185934,0.0003679,3]
[356901901,1743406448919,-200.0,0.0003679,3]
[356901902,1743406448929,-150.0,0.0003679,3]
[356901903,1743406448942,-191.84717264,0.0003679,3]
[356901904,1743406448958,-150.0,0.0003679,3]
[356901905,1743406448968,-150.0,0.0003679,3]
[356901906,1743406448979,-228.43100312,0.0003679,3]
[356901907,1743406448991,-150.0,0.0003679,3]
[356901908,1743406449005,-150.0,0.0003679,3]
[356901909,1743406449015,-150.0,0.0003679,3]
[356901910,1743406449024,-152.53458628,0.0003679,3]
[356901911,1743406449035,-150.0,0.0003679,3]
[356901912,1743406449045,-150.0,0.0003679,3]
[356901913,1743406449056,-150.0,0.0003679,3]
[356901914,1743406449067,-150.0,0.0003679,3]
[356901915,1743406449079,-150.0,0.0003679,3]
[356901916,1743406449096,-150.0,0.0003679,3]
[356901917,1743406449107,-150.0,0.0003679,3]
[356901918,1743406449118,-150.0,0.0003679,3]
[356901919,1743406449128,-150.0,0.0003679,3]
[356901920,1743406449139,-150.0,0.0003679,3]
[356901921,1743406449150,-150.0,0.0003679,3]
[356901922,1743406449161,-151.47,0.0003679,3]
[356901923,1743406449175,-150.0,0.0003679,3]
[356901924,1743406449187,-1000.0,0.0003679,3]
[356901925,1743406449198,-211.1981,0.0003679,3]
[356901926,1743406449208,-2875.5517,0.0003679,3]
[356901927,1743406449219,-500.0,0.0003679,3]
[356901928,1743406449230,-2251.2729,0.0003679,3]
[356901929,1743406449241,-36002.9597,0.0003679,3]
[356901930,1743406449252,-902.787,0.0003679,3]
[356901931,1743406449267,-1294.79880284,0.0003679,3]
[356901932,1743406449276,-52.23319716,0.0003679,3]
[356901933,1743406449287,-151.3139,0.0003679,3]
[356901934,1743406449298,-18158.321,0.0003679,3]
[356901935,1743406449309,-150.0,0.0003679,3]
[356901936,1743406449320,-150.0,0.0003679,3]
[356901937,1743406449331,-150.0,0.0003679,3]
[356901938,1743406449342,-500.00000506,0.0003679,3]
[356901939,1743406449353,-150.0,0.0003679,3]
[356901940,1743406449364,-150.0,0.0003679,3]
[356901941,1743406449374,-150.0,0.0003679,3]
[356901942,1743406449385,-650.51883,0.0003679,3]
[356901943,1743406449399,-11369.3702133,0.0003679,3]
[356901944,1743406449410,-376.13767516,0.0003679,3]
[356901945,1743406449421,-158.34823,0.0003679,3]
[356901946,1743406449431,-151.47,0.0003679,3]
[356901947,1743406449443,-151.47,0.0003679,3]
[356901948,1743406449453,-151.47,0.0003679,3]
[356901949,1743406449464,-151.47,0.0003679,3]
[356901950,1743406449474,-101568.00062532,0.0003679,3]
[356901951,1743406449483,-158159.34790568,0.000368,120]
[356901957,1743407432420,-250.0,0.00025,2]
[356901958,1743407432429,-258.7591093,0.00025138,2]
[356901959,1743407432439,-150.0,0.00025238,2]
[356901960,1743407432448,-350.0,0.00025238,3]
[356901961,1743407432457,-150.0,0.00025623,2]
[356901962,1743407432466,-350.0,0.00025623,3]
[356901963,1743407432476,-258.7591093,0.00025969,2]
[356901964,1743407432486,-175.2,0.0002661,2]
[356901965,1743407432495,-258.7591093,0.000268,2]
[356901966,1743407432504,-161.57,0.00026849,2]
[356901967,1743407432514,-9999.99,0.000269,2]
[356901968,1743407432522,-7109.48,0.000269,2]
[356901969,1743407432532,-150.99,0.000269,2]
[356901970,1743407432541,-999.99,0.000269,2]
[356901971,1743407432550,-299.99,0.000269,12]
[356901972,1743407432559,-300.0,0.00027,2]
[356901973,1743407432568,-3295.72,0.00027,2]
[356901974,1743407432577,-23934.51,0.000275,10]
[356901977,1743407432586,-644.62,0.000275,2]
[356901978,1743407432730,-499.99,0.000275,2]
[356901979,1743407432739,-150.0,0.000275,2]
[356901980,1743407432748,-350.0,0.000275,3]
[356901981,1743407432757,-331.33,0.0002778,2]
[356901982,1743407432766,-350.0,0.00029,2]
[356901983,1743407432775,-618.393,0.00029,21]
[356901984,1743407432784,-400.0,0.00031,2]
[356901985,1743407432793,-150.0,0.00032098,7]
[356901986,1743407432802,-157.78,0.00032932,120]
[356901987,1743407432811,-450.0,0.00033,2]
[356901988,1743407432820,-162.85,0.00033231,2]
[356901989,1743407432829,-150.0,0.00033395,120]
[356901990,1743407432838,-1000.0,0.0003462,2]
[356901991,1743407432847,-190.41,0.0003474,2]
[356901993,1743407432856,-333.82413229,0.00034864,2]
[356901995,1743407432865,-23900.0,0.00034865,2]
[356901996,1743407432874,-500.0,0.00035,2]
[356901997,1743407432883,-1217.0,0.000354,7]
[356901998,1743407432892,-1438.0203847,0.00035686,4]
[356901999,1743407432901,-1000.0,0.000361,7]
[356902000,1743407432910,-6657.6253,0.0003649,2]
[356902001,1743407432919,-612.2123,0.0003649,2]
[356902002,1743407432928,-200.0,0.00036496,10]
[356902003,1743407432937,-150.0,0.00036536,2]
[356902004,1743407432946,-228.7171,0.0003659,2]
[356902005,1743407432955,-19131.0534,0.0003659,2]
[356902006,1743407432964,-563.5558,0.0003659,2]
[356902007,1743407432974,-2002.7149,0.00036606,3]
[356902008,1743407432984,-2005.2079,0.00036606,3]
[356902009,1743407432993,-1000.0,0.00036609,2]
[356902010,1743407433002,-1935.6467,0.00036609,2]
[356902011,1743407433012,-1000.0,0.00036665,2]
[356902012,1743407433021,-518.11841844,0.0003669,9]
[356902013,1743407433030,-161.83175448,0.0003669,2]
[356902014,1743407433040,-44530.7379,0.000367,2]
[356902015,1743407433049,-36002.9597,0.000367,2]
[356902016,1743407433059,-500.0,0.000367,2]
[356902017,1743407433068,-150.0,0.00036709,2]
[356902018,1743407433078,-22525.8676618,0.0003678,3]
[356902019,1743407433087,-151.36,0.0003678,2]
[356902020,1743407433096,-335.0,0.0003679,3]
[356902021,1743407433106,-332.7973288,0.0003679,3]
[356902022,1743407433115,-63984.07299159,0.0003679,3]
[356902023,1743407433127,-24452.82285988,0.0003679,3]
[356902024,1743407433139,-415.32026094,0.0003679,3]
[356902025,1743407433150,-1124.48384387,0.0003679,3]
[356902026,1743407433161,-6510.25076713,0.0003679,3]
[356902027,1743407438149,-151297.59355559,0.0003679,3]
[356902028,1743407438159,-69803.18665633,0.0003679,3]
[356902029,1743407438170,-70370.67362867,0.0003679,3]
[356902030,1743407438179,-158.34824326,0.0003679,59]
[356902031,1743407438189,-151.36,0.0003679,2]
[356902032,1743407438198,-151.36,0.0003679,2]
[356902033,1743407438207,-151.36,0.0003679,2]
[356902034,1743407438217,-151.36,0.0003679,2]
[356902035,1743407438226,-151.36588496,0.0003679,3]
[356902036,1743407438236,-1113.0,0.000368,5]
[356902037,1743407438245,-73196.43413934,0.000368,120]
[356902038,1743407438335,-0.04444107,0.000368,120]
[356902039,1743407438347,-2788.10435896,0.000368,120]
[356902040,1743407438392,-904.0008151,0.000368,120]
[356902059,1743407440293,-1032.75,0.000368,120]
[356902060,1743407440419,-37411.36638528,0.000368,120]
[356902061,1743407440431,-446.48610923,0.000368,120]
[356902062,1743407440555,-1273.216,0.000368,120]
[356902063,1743407440775,-1260.3,0.000368,120]
[356902064,1743407440786,-4172.25,0.000368,120]
[356902065,1743407440861,-9526.47575124,0.000368,120]
[356902067,1743407440873,-10058.27749862,0.000368,120]
[356902077,1743407443464,-166.66666666,0.00025038,2]
[356902078,1743407443474,-266364.47811723,0.000368,120]
[356902079,1743407443486,-61545.6355073,0.000368,120]
[356902237,1743407445032,-1712.32235582,0.000368,120]
[356902240,1743407445055,-22527.2590208,0.000368,120]
[356902242,1743407445065,-516.6058974,0.000368,2]
[356902244,1743407445074,-496.65917676,0.000368,2]
[356902246,1743407445085,-1320.91157854,0.000368,2]
[356902248,1743407445094,-192.7503784,0.000368,2]
[356902442,1743407446855,-0.4161332,0.000368,2]
[356902445,1743407446870,-3121.61210646,0.000368,2]
[356902449,1743407446898,-1274.1,0.000368,2]
[356902451,1743407446913,-6570.19545664,0.000368,2]
[356902453,1743407446922,-1696.0869847,0.000368,2]
[356902455,1743407446931,-1000.0,0.000368,7]
[356902457,1743407446940,-11262.9338309,0.00036815,3]
[356902459,1743407446950,-253.08,0.00036885,2]
[356902461,1743407446959,-1160.0,0.00037072,2]
[356902463,1743407446968,-160.185358,0.000372,103]
[356902465,1743407446978,-200.0,0.00037237,2]
[356902467,1743407446987,-371.11,0.00037389,2]
[356902469,1743407446998,-1000.0,0.000382,7]
[356902471,1743407447007,-197.49,0.00038443,2]
[356902473,1743407447017,-1000.0,0.00038947,2]
[356902475,1743407447027,-161.57,0.00039087,2]
[356902477,1743407447036,-250.0,0.00039307,2]
[356902479,1743407447046,-336.37,0.00039409,2]
[356902481,1743407447055,-371.11,0.00039653,2]
[356902483,1743407447064,-10782.6046373,0.00039828,3]
[356902485,1743407447073,-164.185934,0.00039972,3]
[356902487,1743407447083,-336.0,0.0004,120]
[356902489,1743407447092,-175.95803635,0.0004,120]
[356902491,1743407447101,-241.66687021,0.0004,120]
[356902493,1743407447111,-160.5,0.0004,14]
[356902495,1743407447121,-1000.0,0.0004,7]
[356902497,1743407447130,-879.0,0.0004,5]
[356902499,1743407447139,-10782.6046373,0.00040025,3]
[356902501,1743407447149,-150.0,0.00040027,120]
[356902503,1743407447158,-500.0,0.00040027,120]
[356902505,1743407447167,-500.0,0.00040027,120]
[356902507,1743407447175,-500.0,0.00040027,120]
[356902509,1743407447185,-500.0,0.00040027,120]
[356902511,1743407447193,-150.0,0.00040027,120]
[356902513,1743407447202,-500.0,0.00040027,120]
[356902515,1743407447212,-150.0,0.00040027,120]
[356902517,1743407447221,-150.0,0.00040027,2]
[356902519,1743407447230,-155.1566903,0.00040027,120]
[356902521,1743407447239,-500.0,0.00040027,120]
[356902523,1743407447250,-500.0,0.00040027,120]
[356902525,1743407447259,-500.0,0.00040027,120]
[356902527,1743407447268,-500.0,0.00040027,120]
[356902529,1743407447277,-10782.6046373,0.0004005,3]
[356902531,1743407447286,-155.03446178,0.00040054,120]
[356902533,1743407447295,-702.23669284,0.00040054,120]
[356902535,1743407447304,-500.0,0.00040054,120]
[356902537,1743407447315,-500.0,0.00040054,120]
[356902539,1743407447327,-500.0,0.00040054,120]
[356902541,1743407447336,-150.0,0.00040054,120]
[356902543,1743407447346,-500.0,0.00040054,120]
[356902545,1743407447355,-150.0,0.00040054,120]
[356902547,1743407447366,-500.0,0.00040054,120]
[356902549,1743407447375,-500.0,0.00040054,120]
[356902551,1743407447384,-500.0,0.00040054,120]
[356902553,1743407447394,-500.0,0.00040054,120]
[356902555,1743407447403,-500.0,0.00040082,120]
[356902557,1743407447412,-500.0,0.00040082,120]
[356902559,1743407447422,-500.0,0.00040082,120]
[356902561,1743407447430,-150.0,0.00040082,120]
[356902563,1743407447440,-500.0,0.00040082,120]
[356902565,1743407447449,-204.0449463,0.00040082,120]
[356902567,1743407447458,-552.35685283,0.00040082,120]
[356902569,1743407447467,-500.0,0.00040082,120]
[356902571,1743407447476,-500.0,0.00040082,120]
[356902573,1743407447486,-500.0,0.00040082,120]
[356902575,1743407447497,-430.75678398,0.00040099,7]
[356902577,1743407447506,-174.67,0.000401,2]
[356902579,1743407447515,-500.0,0.00040109,120]
[356902581,1743407447525,-500.0,0.00040109,120]
[356902583,1743407447534,-500.0,0.00040109,120]
[356902585,1743407447543,-150.0,0.00040109,120]
[356902587,1743407447553,-500.0,0.00040109,120]
[356902589,1743407447562,-500.0,0.00040109,120]
[356902591,1743407447571,-500.0,0.00040109,120]
[356902593,1743407447581,-500.0,0.00040109,120]
[356902595,1743407447590,-500.0,0.00040125,5]
[356902597,1743407447599,-301.04769707,0.00040125,5]
[356902599,1743407447609,-151.36,0.00040134,2]
[356902601,1743407447618,-593.06038431,0.00040137,120]
[356902603,1743407447627,-85.0191079,0.00040137,120]
[356902605,1743407447640,-414.9808921,0.00040137,120]
[356902607,1743407447649,-622.01931313,0.00040137,120]
[356902609,1743407447659,-150.0,0.00040137,120]
[356902611,1743407447668,-500.0,0.00040137,120]
[356902613,1743407447678,-500.0,0.00040137,120]
[356902615,1743407447687,-500.0,0.00040137,120]
[356902617,1743407447695,-500.0,0.00040137,120]
[356902619,1743407447704,-2056.07506595,0.00040144,3]
[356902621,1743407447716,-839.12,0.00040144,3]
[356902726,1743408632476,-250.0,0.00025,2]
[356902727,1743408632486,-350.0,0.00025601,3]
[356902728,1743408632496,-150.0,0.00026201,2]
[356902729,1743408632505,-350.0,0.00026681,3]
[356902730,1743408632515,-618.28,0.00027402,16]
[356902731,1743408632524,-218.94542471,0.00027402,2]
[356902732,1743408632536,-150.0,0.0002747,2]
[356902733,1743408632545,-150.0,0.000275,2]
[356902734,1743408632554,-350.0,0.000275,3]
[356902735,1743408632563,-764.98158916,0.000366,2]
[356902736,1743408632575,-235.01841084,0.000366,2]
[356902737,1743408632584,-821.67429863,0.000366,2]
[356902738,1743408632595,-14145.05765889,0.000366,2]
[356902739,1743408632605,-2016.81087589,0.000366,2]
[356902740,1743408632616,-3167.8108349,0.000366,2]
[356902741,1743408632629,-973.725,0.000366,2]
[356902742,1743408632641,-8536.46256784,0.000366,2]
[356902743,1743408632652,-542.92,0.000366,2]
[356902744,1743408632665,-1931.45471134,0.000366,2]
[356902745,1743408632676,-423.51186156,0.000366,2]
[356902746,1743408632695,-316.52362598,0.000366,2]
[356902747,1743408632706,-330.55581015,0.000366,2]
[356902748,1743408632718,-2796.45245482,0.000366,2]
[356902749,1743408632729,-372.83,0.00038201,2]
[356902750,1743408632741,-1000.0,0.000385,7]
[356902751,1743408632750,-1157.0423351,0.00038929,4]
[356902752,1743408632759,-1378.0,0.000393,7]
[356902753,1743408632768,-200.0,0.00039813,20]
[356902754,1743408632782,-168.18,0.00039977,2]
[356902755,1743408632791,-23813.13799285,0.0004,3]
[356902756,1743408632800,-518.3426861,0.0004,30]
[356902757,1743408632811,-746.622747,0.00040144,2]
[356902758,1743408632820,-798.7631126,0.00040144,2]
[356902759,1743408632830,-9595.6067121,0.00040144,2]
[356902760,1743408632839,-294.16410235,0.00040172,30]
[356902761,1743408632849,-154.6,0.00040215,2]
[356902762,1743408632858,-3759.81079753,0.0004041,120]
[356902766,1743408638337,-4371.0,0.0004041,120]
[356902767,1743408638394,-251.99999996,0.0004041,120]
[356902768,1743408638406,-3652.8694975,0.0004041,120]
[356902769,1743408638563,-5654.03419554,0.0004041,120]
[356902770,1743408638618,-32410.28550947,0.0004041,120]
[356902771,1743408638628,-150.0,0.00040425,7]
[356902772,1743408638637,-157.78,0.0004043,120]
[356902773,1743408638647,-372.83,0.00040465,2]
[356902774,1743408638656,-200.0,0.00040524,2]
[356902775,1743408638666,-152.8868957,0.00040663,15]
[356902777,1743408638675,-250.0,0.00040679,2]
[356902778,1743408638684,-23900.0,0.00040737,2]
[356902780,1743408638694,-1000.0,0.00040763,2]
[356902781,1743408638703,-938.29186407,0.000414,15]
[356902782,1743408638712,-495.63933808,0.0004165,7]
[356902783,1743408638722,-150.0,0.000417,7]
[356902784,1743408638733,-153.62596156,0.000417,7]
[356902786,1743408638745,-500.0,0.000417,7]
[356902788,1743408638754,-500.0,0.000417,7]
[356902790,1743408638763,-500.0,0.000417,7]
[356902792,1743408638773,-500.0,0.000417,7]
[356902794,1743408638784,-150.0,0.00041727,7]
[356902796,1743408638794,-903.68410319,0.00041727,7]
[356902798,1743408638804,-500.0,0.00041727,7]
[356902800,1743408638814,-500.0,0.00041727,7]
[356902802,1743408638824,-500.0,0.00041727,7]
[356902804,1743408638834,-150.0,0.00041755,7]
[356902806,1743408638843,-500.0,0.00041755,7]
[356902808,1743408638853,-500.0,0.00041755,7]
[356902810,1743408638862,-150.0,0.00041782,7]
[356902812,1743408638872,-500.0,0.00041782,7]
[356902814,1743408638881,-500.0,0.00041782,7]
[356902815,1743408638891,-262.22714555,0.0004181,7]
[356902816,1743408638901,-502.24525,0.0004181,7]
[356902817,1743408638910,-500.0,0.0004181,7]
[356902818,1743408638920,-500.0,0.00041837,7]
[356902819,1743408638929,-500.0,0.00041864,7]
[356902820,1743408638939,-500.0,0.00041892,7]
[356902821,1743408638948,-500.0,0.00041919,7]
[356902822,1743408638958,-500.0,0.00041947,7]
[356902823,1743408638967,-509.81225757,0.00041973,10]
[356902824,1743408638977,-500.0,0.00041974,7]
[356902825,1743408638986,-59268.57,0.00042,30]
[356902826,1743408638995,-257.83,0.00042,120]
[356902827,1743408639004,-4849.57124998,0.00042,120]
[356902829,1743408640716,-168.18,0.00041194,2]
[356902830,1743408640725,-146.53056578,0.000417,7]
[356902831,1743408640931,-330.55198495,0.000417,7]
[356902844,1743408644310,-22.91744927,0.000417,7]
[356902845,1743408644320,-500.0,0.00041727,7]
[356902846,1743408644329,-500.0,0.00041755,7]
[356902847,1743408644338,-500.0,0.00041782,7]
[356902848,1743408644347,-500.0,0.0004181,7]
[356902849,1743408644357,-500.0,0.00041837,7]
[356902850,1743408644367,-501.79358289,0.00041864,7]
[356902851,1743408644377,-14.48875002,0.00042,120]
[356902852,1743408644388,-264.39,0.00042,120]
[356902853,1743408644398,-698.65,0.00042,120]
[356902854,1743408644409,-500.0,0.00042001,7]
[356902855,1743408644419,-500.0,0.00042029,7]
[356902856,1743408644431,-500.0,0.00042056,7]
[356902857,1743408644442,-500.0,0.00042084,7]
[356902858,1743408644451,-582.0,0.000421,3]
[356902859,1743408644460,-500.0,0.00042111,7]
[356902860,1743408644469,-500.0,0.00042138,7]
[356902861,1743408644478,-500.0,0.00042166,7]
[356902862,1743408644488,-500.0,0.00042193,7]
[356902863,1743408644497,-500.0,0.00042221,7]
[356902864,1743408644507,-500.0,0.00042248,7]
[356902865,1743408644517,-500.0,0.00042275,7]
[356902866,1743408644527,-951.713,0.000423,2]
[356902867,1743408644539,-500.0,0.00042303,7]
[356902868,1743408644548,-500.0,0.0004233,7]
[356902869,1743408644557,-500.0,0.00042358,7]
[356902870,1743408644567,-500.0,0.00042385,7]
[356902871,1743408644576,-2500.0,0.000424,2]
[356902872,1743408644586,-500.0,0.00042412,7]
[356902873,1743408644595,-500.0,0.0004244,7]
[356902874,1743408644604,-827.15177445,0.00042467,7]
[356902875,1743408644613,-4157.18121398,0.000425,13]
[356902993,1743408646673,-301.2799919,0.000425,13]
[356902995,1743408646684,-514.6999931,0.000425,13]
[356902999,1743408646729,-7766.44373775,0.000425,13]
[356903001,1743408646743,-1246.87810194,0.0004269,15]
[356903004,1743408646752,-483.5771906,0.0004269,14]
[356903005,1743408646761,-196.63815673,0.000427,8]
[356903007,1743408646771,-5100.0,0.000427,6]
[356903009,1743408646781,-5100.0,0.000427,7]
[356903011,1743408646793,-5000.0,0.000427,120]
[356903013,1743408646802,-372.83,0.00042729,2]
[356903016,1743408646814,-34640.89723266,0.0004273,3]
[356903047,1743409528123,387.01434497,0.00011,2]
[356903048,1743409528155,1634.82354534,0.00011,2]
[356903050,1743409567393,1826.93435763,8e-05,2]
[356903051,1743409567419,1766.93443003,8e-05,2]
[356903063,1743409802945,350.0,0.0001495,3]
[356903073,1743409831551,-343.66472369,0.000149,2]
[356903074,1743409831560,-150.0,0.0001495,2]
[356903075,1743409831569,-371.33527631,0.00014973,2]
[356903076,1743409831606,-128.66472369,0.00014973,2]
[356903077,1743409831615,-150.0,0.00014999,2]
[356903078,1743409831624,-6661.98646198,0.00015,2]
[356903079,1743409831662,-819.80611266,0.00015,2]
[356903080,1743409831673,-1077.94,0.00015,2]
[356903081,1743409831718,-510.97602094,0.00015,2]
[356903082,1743409831779,-176408.5074023,0.00015,2]
[356903089,1743409837507,-510.80466361,0.00015,2]
[356903090,1743409837519,-4595.3446658,0.00015,2]
[356903091,1743409837530,-606.4717904,0.00015,2]
[356903092,1743409837722,-28219.26065139,0.00015,2]
[356903112,1743409840075,-1720.00173625,0.00015,2]
[356903113,1743409840130,-8673.5920313,0.00015,2]
[356903114,1743409840240,-806.91847004,0.00015,2]
[356903125,1743409842586,-908.4075,0.00015,2]
[356903126,1743409842597,-29681.6757431,0.00015,2]
[356903127,1743409842641,-971.4300002,0.00015,2]
[356903128,1743409842653,-1801.57346345,0.00015,2]
[356903129,1743409842664,-864.09503764,0.00015,2]
[356903130,1743409842698,-673.82,0.00015,2]
[356903131,1743409843371,-10539.38622122,0.00015,2]
[356903132,1743409843382,-64874.20346201,0.00015,2]
[356903133,1743409843393,-2412.46654246,0.00015,2]
[356903134,1743409843404,-2174.13,0.00015,2]
[356903135,1743409843415,-1338.26696788,0.00015,2]
[356903136,1743409845509,-8226.6,0.00015,2]
[356903137,1743409845565,-5570.45453968,0.00015,2]
[356903138,1743409845576,-528.13280593,0.00015,2]
[356903139,1743409845621,-540.92999999,0.00015,2]
[356903140,1743409845731,-838.7,0.00015,2]
[356903141,1743409845850,-239388.90070974,0.00015,2]
[356903172,1743409890561,-217.94542471,0.000149,2]
[356903173,1743409920959,-150.0,0.000149,2]
[356903174,1743410162171,350.0,0.00014936,3]
[356903175,1743410282354,350.0,0.00014918,3]
[356903177,1743410882469,350.0,0.00014909,3]
[356903178,1743411002680,350.0,0.00014905,3]
[356903182,1743411031712,-78.75277529,0.000149,2]
[356903183,1743411031722,-272.17761932,0.000149,2]
[356903184,1743411031733,-2112.5187,0.000149,2]
[356903185,1743411031744,-150.0,0.00014909,2]
[356903186,1743411031755,-549.23153483,0.00014973,2]
[356903187,1743411031765,-61821.78703906,0.00015,2]
[356903188,1743411031778,-3352.73628802,0.00015,2]
[356903189,1743411031816,-431.75655826,0.00015,2]
[356903190,1743411031829,-3479.96276234,0.00015,2]
[356903191,1743411031841,-44926.23694384,0.00015,2]
[356903192,1743411031870,-391.2107439,0.00015,2]
[356903193,1743411031882,-2904.14323361,0.00015,2]
[356903194,1743411031894,-1635.80895032,0.00015,2]
[356903195,1743411031976,-400.41195319,0.00015,2]
[356903196,1743411031989,-548.56913582,0.00015,2]
[356903197,1743411032029,-80593.6348,0.00015,2]
[356903198,1743411032042,-898.6622849,0.00015,2]
[356903199,1743411032054,-1095.15854495,0.00015,2]
[356903221,1743411037606,-2545.50539138,0.00015,2]
[356903222,1743411037618,-3967.82184322,0.00015,2]
[356903223,1743411037713,-581.96065733,0.00015,2]
[356903224,1743411037766,-49820.07147935,0.00015,2]
[356903225,1743411037819,-2513.38842567,0.00015,2]
[356903433,1743411040026,-26882.79308911,0.00015,2]
[356903435,1743411040035,-32696.56386656,0.00015,2]
[356903437,1743411040045,-150.0,0.0001639,2]
[356903439,1743411040055,-350.0,0.0001639,3]
[356903441,1743411040064,-150.0,0.0001639,2]
[356903443,1743411040074,-350.0,0.0001639,3]
[356903445,1743411040083,-272.17761926,0.00018678,2]
[356903447,1743411040093,-412.08,0.00018687,2]
[356903449,1743411040102,-272.17761926,0.00022456,2]
[356903451,1743411040112,-272.17761926,0.00026233,2]
[356903453,1743411040122,-167.86,0.00026849,2]
[356903455,1743411040132,-161.57,0.00026849,2]
[356903457,1743411040141,-500.0,0.0002737,2]
[356903459,1743411040150,-619.414,0.00027432,16]
[356903461,1743411040160,-171.747,0.00027432,16]
[356903463,1743411040169,-2012.8669137,0.0003,2]
[356903465,1743411040178,-272.17761926,0.00030011,2]
[356903467,1743411040188,-167.86,0.00032646,2]
[356903469,1743411040198,-9553.01131785,0.00032866,2]
[356903471,1743411040207,-500.0,0.00032876,120]
[356903472,1743411040216,-500.0,0.00032876,120]
[356903474,1743411040226,-500.0,0.00032876,120]
[356903476,1743411040235,-500.0,0.00032876,120]
[356903478,1743411040244,-500.0,0.00032876,120]
[356903480,1743411040253,-1399.28029927,0.00033454,5]
[356903482,1743411040262,-561.18944665,0.00033454,5]
[356903484,1743411040272,-217.95,0.000335,2]
[356903486,1743411040281,-272.17761926,0.00033789,2]
[356903488,1743411040290,-378.62,0.00035263,2]
[356903490,1743411040299,-157.78,0.00036712,120]
[356903492,1743411040309,-200.0,0.00037001,2]
[356903494,1743411040319,-1337.03444772,0.00037024,2]
[356903496,1743411040327,-9553.01131785,0.00037114,3]
[356903498,1743411040337,-982.0,0.00037124,5]
[356903500,1743411040347,-23900.0,0.00037124,2]
[356903502,1743411040357,-160.18535799,0.000372,103]
[356903504,1743411040367,-250.0,0.00037235,2]
[356903506,1743411040377,-378.62,0.00037527,2]
[356903508,1743411040386,-272.17761926,0.00037567,2]
[356903510,1743411040395,-150.0,0.0003759,7]
[356903512,1743411040404,-154.78,0.0003759,120]
[356903513,1743411040413,-150.05,0.00037961,2]
[356903515,1743411040423,-150.05,0.00038021,2]
[356903517,1743411040433,-150.05,0.0003808,2]
[356903519,1743411040442,-1000.0,0.00038084,2]
[356903521,1743411040452,-150.05,0.0003814,2]
[356903523,1743411040462,-150.05,0.000382,2]
[356903525,1743411040472,-150.05,0.0003826,2]
[356903527,1743411040481,-150.05,0.0003832,2]
[356903529,1743411040490,-1337.0344477,0.00038344,2]